Cogmind - Beta 13 @@@ ROGUE MODE // 2024.04.10 @ 01:27:22 Player: Mertly Result: Self-destructed Performance ------------- Evolutions (3) 1500 Regions Visited (5) 1000 Robots Destroyed (39) 195 Value Destroyed (1474) 1474 Prototype IDs (7) 140 Alien Tech Used (0) 0 Bonus (200) 200 TOTAL SCORE: 4509 Bonus ------- Entered Garrisons 200 Cogmind --------- Core Integrity 327/700 Matter 117/300 Energy 199/500 System Corruption 0% Temperature Cool (0) Movement Core (1700) Ox33 Location -7/Garrison Parts ------- > --- POWER (1) -------- Enhanced Nuclear Core > --- PROPULSION (6) --- (None) > --- UTILITY (4) ------ Huge Storage Unit Large Battery Improved Utility Shielding > --- WEAPON (2) ------- Heavy Particle Cannon Katana > --- INVENTORY (25) --- High-capacity Matter Pod (106) Visual Processing Unit Improved Utility Shielding Hardlight Generator Shield Generator System Shield Relay Coupler [Grunt] (29) Relay Coupler [Grunt] (26) Heavy Particle Gun Heavy Particle Cannon Enhanced Autogun Peak State ------------ > --- POWER ------------ Light Nuclear Core > --- PROPULSION ------- Improved Treads Improved Treads Improved Treads Improved Treads Improved Treads Improved Treads > --- UTILITY ---------- Improved Heat Sink Huge Storage Unit Light Armor Plating Hardlight Generator > --- WEAPON ----------- Heavy Particle Gun Heavy Particle Gun > --- INVENTORY -------- Light Nuclear Core Enhanced Nuclear Core Improved Treads Carbon-fiber Leg Large Battery High-capacity Matter Pod Visual Processing Unit Improved Utility Shielding Improved Utility Shielding Medium Armor Plating Hardlight Generator Shield Generator Shield Generator Shield Generator System Shield Relay Coupler [Grunt] Relay Coupler [Grunt] Heavy Particle Cannon Heavy Particle Cannon Minigun Enhanced Autogun Grenade Launcher Katana [Rating: 37] Favorites ----------- Power Light Ion Engine Engine Light Ion Engine Power Core Light Nuclear Core Propulsion Improved Treads Treads Improved Treads Leg Aluminum Leg Utility Huge Storage Unit Device Hardlight Generator Storage Huge Storage Unit Protection Medium Armor Plating Weapon Heavy Particle Gun Energy Gun Heavy Particle Gun Energy Cannon Heavy Particle Cannon Ballistic Gun Assault Rifle Launcher Grenade Launcher Slashing Weapon Katana Build | -11 -10 -9 -8 -7 -7 ------- Run | Yrd Mat Mat Mat Fac Gar Slots Evolved 6 | . . 2 2 2 . Power . | . . . . . . Propulsion 4 | . . . 2 2 . Utility 2 | . . 2 . . . Weapon . | . . . . . . Parts Attached 59 | 6 5 7 17 4 20 Power 11 | 1 1 2 3 2 2 Engine 4 | 1 1 2 . . . Core 7 | . . . 3 2 2 Reactor . | . . . . . . Propulsion 17 | 2 2 . 4 2 7 Treads 12 | . 2 . 4 2 4 Leg 5 | 2 . . . . 3 Wheel . | . . . . . . Hover . | . . . . . . Flight . | . . . . . . Utility 15 | 1 2 2 4 . 6 Device 6 | . . . 3 . 3 Storage 4 | 1 2 . . . 1 Processor . | . . . . . . Hackware . | . . . . . . Protection 5 | . . 2 1 . 2 Artifact . | . . . . . . Weapon 16 | 2 . 3 6 . 5 Energy Gun 9 | 1 . 2 5 . 1 Energy Cannon 1 | . . . . . 1 Ballistic Gun 3 | 1 . . 1 . 1 Ballistic Cannon . | . . . . . . Launcher 2 | . . 1 . . 1 Special Weapon . | . . . . . . Impact Weapon . | . . . . . . Slashing Weapon 1 | . . . . . 1 Piercing Weapon . | . . . . . . Special Melee Weapon . | . . . . . . Unidentified Prototypes 5 | . . 2 2 1 . Parts Lost 21 | . . . 1 . 20 Power 2 | . . . . . 2 Propulsion 10 | . . . . . 10 Utility 7 | . . . 1 . 6 Weapon 2 | . . . . . 2 Highest Loss Streak 17 | . . . 1 . 17 To Critical Strikes . | . . . . . . Average Slot Usage (%) 96 | . 94 95 100 100 94 Engine 7 | . 14 11 6 . . Core 2 | . . . 2 7 6 Treads 32 | . 26 22 36 46 42 Device 4 | . . . 7 7 9 Storage 18 | . 22 22 18 15 9 Protection 10 | . . 17 10 7 6 Energy Gun 16 | . 14 19 17 15 12 Ballistic Gun 3 | . 14 2 . . . Naked Turns . | . . . . . . Heaviest Build 105 | 14 90 100 104 105 102 Greatest Support 138 | 20 46 46 92 138 138 Greatest Overweight (x) 4 | 2 1 2 1 . 4 Average Overweight (x) . | . . 1 1 . . Largest Inventory Capacity 25 | 8 25 25 25 25 25 Average Capacity 23 | 6 17 25 25 25 25 Most Carried 25 | 5 9 13 25 23 25 Average Carried 16 | 1 7 11 20 22 22 Final Capacity 25 | 8 25 25 25 25 25 Final Carried 23 | 1 9 12 23 23 11 Class Distribution -------------------- 100% | Mutant Dominant Class ---------------- Mutant | -10/Materials Mutant | -9/Materials Mutant | -8/Materials Mutant | -7/Factory Mutant | -7/Garrison Resources | -11 -10 -9 -8 -7 -7 ----------- Run | Yrd Mat Mat Mat Fac Gar Matter Collected 812 | 188 12 220 191 . 201 Remotely . | . . . . . . Salvage Created 1184 | . 39 322 480 . 343 Parts 81 | . 5 19 34 . 23 Haulers Intercepted 3 | . . 1 2 . . Recyclers Shooed . | . . . . . . Parts Field Recycled . | . . . . . . Retrieved Matter . | . . . . . . Parts Self-Destructed . | . . . . . . Prevented . | . . . . . . Kills | -11 -10 -9 -8 -7 -7 ------- Run | Yrd Mat Mat Mat Fac Gar Combat Hostiles Destroyed 32 | . 3 6 9 . 14 Guns 22 | . 3 3 9 . 7 AOE 9 | . . 3 . . 6 Classes Destroyed 9 | . 1 6 . . 2 Worker 2 | . . 1 1 . . Hauler 3 | . . 1 2 . . Watcher 2 | . . 1 1 . . Swarmer 11 | . 3 . 4 . 4 Cutter 3 | . . . . . 3 Grunt 11 | . . 4 3 . 4 Brawler 2 | . . 1 . . 1 Sentry 4 | . . 1 2 . 1 Hunter 1 | . . . . . 1 Best Kill Streak 6 | . 3 4 6 . 6 Combat Bots Only 6 | . 3 3 6 . 6 Max Kills in Single Turn 2 | . 1 2 1 . 2 Gunslinging . | . . . . . . Exploded 2 | . . 2 . . 2 Melee . | . . . . . . Uniques/NPCs Destroyed . | . . . . . . Combat | -11 -10 -9 -8 -7 -7 -------- Run | Yrd Mat Mat Mat Fac Gar Hostile Shots Fired 432 | . 21 30 48 . 333 Missed 146 | . 7 3 14 . 122 Damage Taken 3046 | . 115 333 363 . 2235 Core 474 | . 8 34 59 . 373 Absorbed by Shields 328 | . . . 108 . 220 Redirected to Shielding 87 | . . 29 . . 58 Core Remaining (%) 94 | 100 96 91 89 . . Volleys Fired 108 | . 8 21 31 . 48 Largest 2 | . 2 2 2 . 2 Hottest 112 | . 70 112 110 . 110 Shots Fired 186 | . 16 40 59 . 71 Gun 176 | . 16 38 59 . 63 Cannon . | . . . . . . Launcher 10 | . . 2 . . 8 Special . | . . . . . . Kinetic 30 | . 8 8 2 . 12 Thermal 146 | . 8 30 57 . 51 Explosive 10 | . . 2 . . 8 Electromagnetic . | . . . . . . Robot Hit Streak 14 | . 4 14 8 . 8 Robot Miss Streak 5 | . 1 2 2 . 5 Penetration Max . | . . . . . . Secondary Targets 4 | . 1 . 3 . . Max Gunslinging Chain 1 | . 1 . 1 . . Shots Hit Robots 115 | . 10 28 40 . 37 Core Hits 80 | . 3 15 22 . 40 Critical Kills 2 | . . 1 . . 1 Critical Parts Destroyed . | . . . . . . Critical Strikes 8 | . 1 2 2 . 3 Burn 6 | . 1 1 2 . 2 Destroy 2 | . . 1 . . 1 Melee Attacks . | . . . . . . Impact . | . . . . . . Slashing . | . . . . . . Piercing . | . . . . . . Sneak Attacks . | . . . . . . Combat Hostiles . | . . . . . . Follow-up Attacks . | . . . . . . Damage Inflicted 2885 | . 124 518 783 . 1460 Guns 1971 | . 124 376 783 . 688 Cannons . | . . . . . . Explosions 914 | . . 142 . . 772 Melee . | . . . . . . Ramming . | . . . . . . Kinetic 309 | . 73 75 15 . 146 Thermal 1662 | . 51 301 768 . 542 Explosive 914 | . . 142 . . 772 Electromagnetic . | . . . . . . Impact . | . . . . . . Slashing . | . . . . . . Piercing . | . . . . . . Highest Corruption . | . . . . . . Average Corruption . | . . . . . . Corruption Purged . | . . . . . . Corruption Blocked . | . . . . . . Overload Shots . | . . . . . . Overflow Damage 48 | . . . . . 48 Projectiles . | . . . . . . Explosions 48 | . . . . . 48 Melee . | . . . . . . Knockbacks . | . . . . . . Impact . | . . . . . . Kinetic . | . . . . . . Secondary . | . . . . . . Self-Inflicted Damage 20 | . . . . . 20 Shots 1 | . . . . . 1 Rammed . | . . . . . . Targets Rammed . | . . . . . . Kicked . | . . . . . . Crushed . | . . . . . . Highest Temperature 546 | . 63 166 372 . 546 Average Temperature 142 | . 29 61 145 . 219 Received Heat Transfer 701 | . . 138 153 . 410 Effects 20 | . . . 6 . 14 Shutdowns 2 | . . . . . 2 Energy Bleed 3 | . . . 1 . 2 Interference 8 | . . . 5 . 3 Short Circuit 1 | . . . . . 1 Damage (minor) 1 | . . . . . 1 Damage (major) 4 | . . . . . 4 Damage (core) 1 | . . . . . 1 Siege Activations . | . . . . . . Robots Corrupted . | . . . . . . Combat Hostiles . | . . . . . . Parts Fried . | . . . . . . Impact Corruptions . | . . . . . . Robots Melted 1 | . . . . . 1 Combat Hostiles 1 | . . . . . 1 Parts Melted 6 | . . 2 2 . 2 Heat Transferred 3959 | . 222 851 1665 . 1221 Parts Sabotaged . | . . . . . . Parts Stolen . | . . . . . . Parts Stripped . | . . . . . . Power Chain Reactions . | . . . . . . Alert | -11 -10 -9 -8 -7 -7 ------- Run | Yrd Mat Mat Mat Fac Gar Peak Influence 374 | . 120 147 202 2 374 Initial 50 | . . 50 . 2 1 Average 71 | . 66 56 64 2 159 Maximum Alert Level 1 | . . . 1 . 1 Low Security (%) 96 | 100 100 100 98 100 77 Level 1 3 | . . . 1 . 22 Level 2 . | . . . . . . Level 3 . | . . . . . . Level 4 . | . . . . . . Level 5 . | . . . . . . High Security . | . . . . . . Max Security . | . . . . . . Squads Dispatched 2 | . . 1 1 . . Investigation 1 | . . 1 . . . Extermination . | . . . . . . Reinforcement . | . . . . . . Assault . | . . . . . . Garrison 1 | . . . 1 . . Intercept . | . . . . . . Searches Triggered . | . . . . . . Construction Impeded . | . . . . . . Haulers Reinforced . | . . . . . . Active Scanning Responses . | . . . . . . Cargo Convoy Interrupts . | . . . . . . Stealth | -11 -10 -9 -8 -7 -7 --------- Run | Yrd Mat Mat Mat Fac Gar Distress Signals 4 | . 2 2 . . . Communications Jammed . | . . . . . . Distress Signals . | . . . . . . Times Spotted 57 | . 6 8 18 . 25 Peak Tracking Total 7 | . 4 4 6 . 7 Tactical Retreats 2 | . . . 2 . . Traps | -11 -10 -9 -8 -7 -7 ------- Run | Yrd Mat Mat Mat Fac Gar Traps Triggered . | . . . . . . Indirectly . | . . . . . . Trap Hack Attempts . | . . . . . . Triggered . | . . . . . . Disarmed . | . . . . . . Reprogrammed . | . . . . . . Reused . | . . . . . . Traps Extracted . | . . . . . . Installed . | . . . . . . Triggered . | . . . . . . Machines | -11 -10 -9 -8 -7 -7 ---------- Run | Yrd Mat Mat Mat Fac Gar Machines Disabled 2 | . . . . . 2 Max in Single Turn 1 | . . . . . 1 Garrison Relay 2 | . . . . . 2 Machines Repaired . | . . . . . . Machines Dismantled . | . . . . . . Machines Sabotaged . | . . . . . . Overloaded Fab Kills . | . . . . . . Hacking | -11 -10 -9 -8 -7 -7 --------- Run | Yrd Mat Mat Mat Fac Gar Machines Accessed 14 | . 3 5 5 1 . Terminals 11 | . 3 4 4 . . Fabricators . | . . . . . . Repair Stations . | . . . . . . Recycling Units 1 | . . 1 . . . Scanalyzers . | . . . . . . Garrison Access 2 | . . . 1 1 . Total Hacks 29 | . 8 11 9 1 . Successful 15 | . 3 5 6 1 . Failed 14 | . 5 6 3 . . Catastrophic 1 | . . 1 . . . Database Lockouts . | . . . . . . Manual . | . . . . . . Terminals 25 | . 8 9 8 . . Fabricators . | . . . . . . Repair Stations . | . . . . . . Recycling Units 2 | . . 2 . . . Scanalyzers . | . . . . . . Garrison Access 2 | . . . 1 1 . Terminal Hacks 13 | . 3 5 5 . . Prototype ID Bank 1 | . . . 1 . . Emergency Access Points 2 | . . . 2 . . Locate Traps 1 | . . . 1 . . Dispatch Records 1 | . . 1 . . . Transport Status 1 | . 1 . . . . Investigation Status 1 | . . 1 . . . Recall Investigation 1 | . . 1 . . . Hauler Manifests 1 | . 1 . . . . Registered Components 1 | . . . 1 . . Zone Layout 3 | . 1 2 . . . Fabricator Hacks . | . . . . . . Repair Station Hacks . | . . . . . . Recycling Unit Hacks . | . . . . . . Scanalyzer . | . . . . . . Garrison Access Hacks 2 | . . . 1 1 . Unlock Access 2 | . . . 1 1 . Unauthorized Hacks . | . . . . . . Terminals . | . . . . . . Fabricators . | . . . . . . Repair Stations . | . . . . . . Recycling Units . | . . . . . . Scanalyzers . | . . . . . . Garrison Access . | . . . . . . Data Cores Recovered . | . . . . . . Used . | . . . . . . Hacking Detections 8 | . 3 3 1 1 . Full Trace Events 1 | . . 1 . . . Feedback Events . | . . . . . . Feedback Blocked . | . . . . . . Robot Schematics Acquired . | . . . . . . Robots Built . | . . . . . . Authchips . | . . . . . . Time . | . . . . . . Total Robot Build Rating . | . . . . . . Part Schematics Acquired . | . . . . . . Parts Built . | . . . . . . Authchips . | . . . . . . Time . | . . . . . . Total Part Build Rating . | . . . . . . Parts Repaired . | . . . . . . Time . | . . . . . . Parts Recycled . | . . . . . . Recycled Matter . | . . . . . . Retrieved Matter . | . . . . . . Retrieved Components . | . . . . . . Parts Scanalyzed . | . . . . . . Part Schematics Acquired . | . . . . . . Parts Damaged . | . . . . . . Bothacking | -11 -10 -9 -8 -7 -7 ------------ Run | Yrd Mat Mat Mat Fac Gar Used RIF Installer . | . . . . . . Robots Hacked . | . . . . . . Non-combat . | . . . . . . Combat . | . . . . . . Robot Hacks Applied . | . . . . . . Relay Couplers Released 6 | . . . . . 6 Machine Destruction 6 | . . . . . 6 Fabnet Peak Effective % . | . . . . . . Robots Rewired . | . . . . . . Allies Hacked . | . . . . . . Hacks Repelled . | . . . . . . Allies | -11 -10 -9 -8 -7 -7 -------- Run | Yrd Mat Mat Mat Fac Gar Total Allies . | . . . . . . Largest Group . | . . . . . . Highest-Rated Group . | . . . . . . Highest-Rated Ally . | . . . . . . Total Orders . | . . . . . . Ally Attacks . | . . . . . . Total Damage . | . . . . . . Kills . | . . . . . . Allies Corrupted . | . . . . . . Allies Melted . | . . . . . . Intel | -11 -10 -9 -8 -7 -7 ------- Run | Yrd Mat Mat Mat Fac Gar Robot Analysis Total . | . . . . . . Derelict Logs Recovered . | . . . . . . Drone Launches . | . . . . . . Drone Recoveries . | . . . . . . Exploration | -11 -10 -9 -8 -7 -7 ------------- Run | Yrd Mat Mat Mat Fac Gar Turns Passed 2627 | 48 341 807 853 176 402 Spaces Moved 962 | 31 152 237 290 102 150 Core 18 | 18 . . . . . Treads 922 | . 144 237 290 102 149 Legs 22 | 13 8 . . . 1 Wheels . | . . . . . . Hover . | . . . . . . Flight . | . . . . . . Fastest Speed 50 | 50 120 240 240 160 160 Average Speed 222 | 114 197 295 240 160 163 Slowest Speed 480 | 150 240 320 240 160 480 Overloaded Moves . | . . . . . . Propulsion Burnouts . | . . . . . . Robots Hopped . | . . . . . . Cave-ins Triggered . | . . . . . . Exploration Rate (%) 21 | 3 36 26 38 3 24 Regions Visited 5 Branch Regions . Pre-discovered Areas . | . . . . . . Known Exits Taken 1 | . . . . 1 . Unknown Exits Taken 4 | 1 1 1 1 . . Scrap Searched . | . . . . . . Spaces Dug . | . . . . . . Terrain Destroyed 18 | . . 8 . . 10 Melee . | . . . . . . Projectile . | . . . . . . AOE 18 | . . 8 . . 10 Terrain Rammed . | . . . . . . Walls Destroyed . | . . . . . . Machines Disabled . | . . . . . . Actions | -11 -10 -9 -8 -7 -7 --------- Run | Yrd Mat Mat Mat Fac Gar Total 1268 | 43 179 303 393 114 236 Wait 53 | . 1 30 11 2 9 Move 958 | 30 151 236 289 102 150 Hop . | . . . . . . Pick Up 62 | 7 10 7 28 4 6 Fast Attach 1 | . 1 . . . . Attach 30 | 6 . 2 5 2 15 Detach 2 | . . . 2 . . Swap 28 | . 4 5 12 2 5 Drop 26 | . 4 2 15 2 3 Fire 108 | . 8 21 31 . 48 Melee . | . . . . . . Ram . | . . . . . . Kick . | . . . . . . Crush . | . . . . . . Escape Stasis . | . . . . . . Rewire . | . . . . . . Trap . | . . . . . . Miscellaneous . | . . . . . . Route ------- -11/Scrapyard -10/Materials (discovered 2 exits: *Mat / [*Min]) -9/Materials -8/Materials (discovered 2 exits: *Fac / Gar) -7/Factory -7/Garrison History --------- Turn | Location | Event 16 | -11/Scrapyard | Discovered new exit (range 15) 49 | -11/Scrapyard | Entered Materials 194 | -10/Materials | Discovered new exit (range 14) 303 | -10/Materials | Build established: Mutant 378 | -10/Materials | Discovered new exit (range 4) 390 | -10/Materials | Entered another Materials area 390 | -9/Materials | Evolved 2 slots: Utility x2 1088 | -9/Materials | Discovered new exit (range 16) 1197 | -9/Materials | Entered another Materials area 1197 | -8/Materials | Evolved 2 slots: Propulsion x2 1406 | -8/Materials | Garrison activated, responded to threat 1632 | -8/Materials | Identified exit to Garrison 2014 | -8/Materials | Discovered new exit (range 16) 2050 | -8/Materials | Entered Factory 2050 | -7/Factory | Evolved 2 slots: Propulsion x2 2226 | -7/Factory | Identified exit to Garrison 2226 | -7/Factory | Entered Garrison 2244 | -7/Garrison | Garrison Relay disabled 2306 | -7/Garrison | Triggered checkpoint 2396 | -7/Garrison | Garrison Relay disabled 2536 | -7/Garrison | Triggered checkpoint 2559 | -7/Garrison | Lost 3 parts (3u) 2560 | -7/Garrison | Triggered checkpoint 2607 | -7/Garrison | Triggered checkpoint 2622 | -7/Garrison | Core integrity fell below 50% 2628 | -7/Garrison | Self-destructed Last Messages --------------- 02591_ ALERT: Dispatching investigation squad to Factory. 02591_ S-27 Virus suffers critical hit (Destroy). 02591_ S-27 Virus destroyed. 02592_ Lgt. Nuclear Core destroyed. 02596_ Imp. Treads destroyed. 02602_ Med. Armor Plating destroyed. 02606_ Y-54 Guardian destroyed. 02607_ Beams of light sweep through the air. An alarm sounds. 02615_ Shield Generator destroyed. 02618_ Lgt. Nuclear Core destroyed. 02618_ Imp. Treads destroyed. 02621_ Minigun destroyed. 02624_ Broken Imp. Treads destroyed. 02624_ Aluminum Leg destroyed. 02626_ Carbon-fiber Leg destroyed. 02626_ Hvy. Particle Gun severed. 02628_ Shield Generator destroyed. Map ----- +----------------------------------------------------+ | ?????????????????????????????????????????????????? | | ?????????????????????????????????????????????????? | | ?????????????????????????????????????????????????? | | ?????????????????????????????????????????????????? | | ?????????????????????????????????????????????????? | | ?????????????????????????????????????????????????? | | ?????????????????????????????????????????????????? | | ?????????????????????? ????????????????????????? | | ?????????????????????# ????????????????????????? | | ??????????????????#??# ????????????????????????? | | ???????????????#?? ## #???????????????????????? | | ?????????????### ?? # ???????????????????????? | | ????????????? ? !% ???????????????????????? | | ????????????? ? [ % ???????????????????????? | | ?????????????? ? [ ???????????????????????? | | ??????????? ???# # ???????????????????????? | | ???????????? ## # *###?????????????????????? | | ?????????????? ??????????????????????? | | ???????????????? ??????????????????????? | | ???????????? ???? % ???????????????????????? | | ?????????????? g???? ???????????????????????? | | ???????????????# ???# ] #???????????????????????? | | ??????????# ## ## ^^############????????????? | | ????????? Y =*= = #????????????? | | ????????? Y [ll]*! #????????????? | | ??????????# Y%@ ] #????????????? | | ??????????## ## ##++######### #????????????? | | ???????????????# ????# #??# #??# #????????????? | | ?????????????????????# #??# #??# #????????????? | | ?????????????????????# #??# #??# #????????????? | | ?????????????????????# #??# #??# ######??###### | | ?????????????????????# #??# #??# ##** #??#" "" | | ?????????????????????# #### #### ## #####!!!# | | ?????????????????????# " ^ ^ | | ?????????????????????# + ^ ^ | | ?????????????????????############ % ############## | | ????????????????????????????????# #????????????? | | ????????????????????????????????# #????????????? | | ????????????????????????????????# #????????????? | | ????????????????????????????????# #????????????? | | ????????????????????????????????# #????????????? | | ????????????????????????????????# #????????????? | | ????????????????????????????????# #????????????? | | ????????????????????????????????# #????????????? | | ????????????????????????????????# #????????????? | | ????????????????????????????????# #????????????? | | ????????????????????????????????# #????????????? | | ????????????????????????????????# #????????????? | | ????????????????????????????????# #????????????? | | ????????????????????????????????# #????????????? | +----------------------------------------------------+ Best States ------------- Heat Dissipation 48 Energy Generation 17 Energy Capacity 500 Matter Stores 300 Matter Capacity 300 Sight Range 16 Terrain Scan Density 10 Armor Coverage 225 Propulsion Shielding 33 Evasion (%) 55 Recoil Reduction 6 Item Schematics ----------------- None Robot Schematics ------------------ None Fabricated ------------ Nothing Alien Tech Used ----------------- None Achievements -------------- GoHome() Challenges ------------ None Game ------ Seed LauncherHoverSplitter Manual? 0 Play Time 00:47:08 Cumulative 21.0 hours Start 2024.04.10 @ 00:38:02 End 2024.04.10 @ 01:27:22 Sessions 1 Manual Loads 0 Difficulty Rogue Special Mode None Game No. 11 Rogue 11 Adventurer 0 Explorer 0 Win Type - Total 0 Types 0/0/0/0/0/0/0/0/0 Lore% 5 Gallery% 19 Achievement% 16 Wizard Run 0 Options --------- Layout 1 ASCII 0 Keyboard 0 Movement Mouse Keybinds 0 Fullscreen 2 Font 24/Smallcaps Map View 50x35 Zoom Use 0% Tactical HUD 1 Map Filters NONE Filters NONE Steam 1 RUN: d056117e-61c9-4162-aeb1-518c332f96bd